bitfinex-derivatives/quotes_BTCF0:USTF0_20241210
["timestamp","ask_amount","ask_price","bid_price","bid_amount"]
[1733825159318,0.052209,97604.0,97603.0,0.013]
[1733825160508,0.06317764,97604.0,97603.0,0.013]
[1733825160737,0.06217764,97604.0,97603.0,0.005]
[1733825161014,0.06317764,97604.0,97603.0,0.005]
[1733825162115,0.01196864,97604.0,97600.0,0.1]
[1733825162311,0.051211,97601.0,97600.0,0.1]
[1733825163029,0.001,97604.0,97600.0,0.15441272]
[1733825163232,0.001,97604.0,97603.0,0.05121]
[1733825163435,0.051203,97616.0,97607.0,0.051207]
[1733825163711,0.051203,97616.0,97609.0,0.3608]
[1733825163912,0.051203,97616.0,97615.0,4e-05]
[1733825164124,0.051203,97616.0,97615.0,0.00324107]
[1733825164918,0.054203,97616.0,97615.0,0.00324107]
[1733825165518,0.051203,97616.0,97615.0,0.00324107]
[1733825170325,0.051203,97616.0,97615.0,0.00424107]
[1733825170918,0.051203,97616.0,97615.0,0.00524107]
[1733825171325,0.051203,97616.0,97615.0,0.1859043]
[1733825171531,0.051203,97616.0,97615.0,0.1879043]
[1733825171922,0.051203,97616.0,97615.0,0.00524107]
[1733825172222,0.051203,97616.0,97615.0,0.00624107]
[1733825172731,0.051203,97616.0,97615.0,0.00524107]
[1733825172927,0.051203,97616.0,97615.0,0.0072411]
[1733825173726,0.051203,97616.0,97615.0,0.00404]
[1733825174123,0.051203,97616.0,97615.0,0.00724111]
[1733825175318,0.051203,97616.0,97615.0,0.25039082]
[1733825175520,0.051203,97616.0,97615.0,0.30159382]
[1733825175928,0.081599,97623.0,97621.0,0.0512]
[1733825176123,0.081599,97623.0,97622.0,0.36400111]
[1733825176418,0.081599,97623.0,97622.0,0.36404111]
[1733825176623,0.081599,97623.0,97622.0,0.00324111]
[1733825177039,0.081599,97623.0,97622.0,0.00324098]
[1733825177527,0.082599,97623.0,97622.0,0.00324098]
[1733825177737,0.0314,97623.0,97622.0,0.00324098]
[1733825178028,0.0314,97623.0,97622.0,0.24808904]
[1733825178232,0.0314,97623.0,97622.0,0.00324098]
[1733825179142,0.001,97623.0,97622.0,0.00324098]
[1733825179424,0.001,97623.0,97622.0,0.31334639]
[1733825180024,0.051187,97646.0,97622.0,0.41845449]
[1733825180222,0.051187,97646.0,97644.0,0.051188]
[1733825180418,0.051187,97646.0,97645.0,0.00324017]
[1733825181032,0.051185,97651.0,97650.0,0.051185]
[1733825181224,0.051185,97651.0,97650.0,0.05438517]
[1733825181428,0.051185,97651.0,97650.0,0.09918415]
[1733825182035,0.051185,97651.0,97650.0,0.09922415]
[1733825182238,0.0317,97654.0,97653.0,0.051183]
[1733825182536,0.0317,97654.0,97653.0,0.05438292]
[1733825182740,0.0317,97654.0,97653.0,0.34385793]
[1733825183326,0.0317,97654.0,97653.0,0.09922041]
[1733825183528,0.0317,97654.0,97653.0,0.05442292]
[1733825183828,0.0317,97654.0,97653.0,0.09922032]
[1733825184027,0.0317,97654.0,97653.0,0.05542292]
[1733825184534,0.0317,97654.0,97653.0,0.00423992]
[1733825184936,0.0317,97654.0,97653.0,0.00323992]
[1733825185136,0.0317,97654.0,97653.0,0.19153762]
[1733825185335,0.0317,97654.0,97653.0,0.00823992]
[1733825186541,0.0317,97654.0,97653.0,0.00723992]
[1733825187041,0.0317,97654.0,97653.0,0.00423992]
[1733825187439,0.0317,97654.0,97653.0,0.00323992]
[1733825188639,0.0317,97654.0,97653.0,4e-05]
[1733825189942,0.0347,97654.0,97653.0,4e-05]
[1733825193039,0.3955,97654.0,97653.0,4e-05]
[1733825195843,0.48719793,97654.0,97653.0,4e-05]
[1733825196447,0.48720826,97654.0,97653.0,4e-05]
[1733825196949,0.3955,97654.0,97653.0,4e-05]
[1733825201644,0.48723834,97654.0,97653.0,4e-05]
[1733825202242,0.3955,97654.0,97653.0,4e-05]
[1733825205646,0.446683,97654.0,97653.0,4e-05]
[1733825206449,0.446683,97654.0,97653.0,0.00324036]
[1733825206956,0.56905244,97654.0,97653.0,0.00324036]
[1733825207153,0.446683,97654.0,97653.0,0.00324036]
[1733825207752,0.414983,97654.0,97653.0,0.00324036]
[1733825207961,0.414983,97654.0,97653.0,0.18709408]
[1733825208263,0.414983,97654.0,97653.0,0.00324036]
[1733825208861,0.413983,97654.0,97653.0,0.00324036]
[1733825209374,0.413983,97654.0,97653.0,4e-05]
[1733825209553,0.413983,97654.0,97653.0,0.00324003]
[1733825209554,0.412983,97654.0,97653.0,0.00324003]
[1733825209961,0.411983,97654.0,97653.0,0.00324003]
[1733825210268,0.412983,97654.0,97653.0,4e-05]
[1733825211567,0.412983,97654.0,97653.0,0.00324003]
[1733825211766,0.412983,97654.0,97653.0,0.18719913]
[1733825212365,0.412983,97654.0,97653.0,0.1839991]
[1733825212573,0.412983,97654.0,97653.0,0.18719913]
[1733825213075,0.412983,97654.0,97653.0,0.18719912]
[1733825213281,0.412983,97654.0,97653.0,0.00324002]
[1733825213282,0.50490008,97654.0,97653.0,0.00324002]
[1733825214370,0.412983,97654.0,97653.0,0.00324002]
[1733825214677,1.37561434,97654.0,97653.0,0.18407154]
[1733825214975,0.412983,97654.0,97653.0,0.00324018]
[1733825215974,0.53561539,97654.0,97653.0,0.00324018]
[1733825216473,0.412983,97654.0,97653.0,0.00324018]
[1733825218173,0.412983,97654.0,97653.0,0.00324003]
[1733825219279,0.53561539,97654.0,97653.0,0.00324003]
[1733825219475,0.412983,97654.0,97653.0,0.1872912]
[1733825219772,0.412983,97654.0,97653.0,0.00324003]
[1733825220871,0.56619483,97654.0,97653.0,0.00324003]
[1733825221275,0.412983,97654.0,97653.0,0.00324003]
[1733825223386,0.412983,97654.0,97653.0,4e-05]
[1733825223582,0.412983,97654.0,97653.0,0.00324027]
[1733825225684,0.412983,97654.0,97650.0,0.14519777]
[1733825225888,0.05119,97640.0,97638.0,0.24463752]
[1733825226083,0.04977764,97653.0,97637.0,0.24463752]
[1733825226084,0.12274459,97641.0,97637.0,0.24463752]
[1733825226281,0.3608,97645.0,97640.0,0.3608]
[1733825226282,0.12274459,97643.0,97640.0,0.3608]
[1733825226595,0.051188,97645.0,97640.0,0.36084]
[1733825226780,0.051189,97642.0,97641.0,0.44885522]
[1733825226971,0.051189,97642.0,97641.0,0.40405022]
[1733825227171,0.051189,97642.0,97641.0,0.4488541]
[1733825228683,0.051189,97642.0,97641.0,0.4508541]
[1733825229193,0.051187,97647.0,97641.0,0.4548541]
[1733825229391,0.051187,97647.0,97646.0,0.30661971]
[1733825229686,0.051187,97647.0,97646.0,0.61588491]
[1733825230483,0.051187,97647.0,97646.0,0.6606849]
[1733825230874,0.051187,97647.0,97646.0,0.3514597]
[1733825231078,0.051187,97647.0,97646.0,0.30665971]
[1733825231278,0.051187,97647.0,97646.0,0.61523529]
[1733825231489,0.051187,97647.0,97646.0,0.30865971]
[1733825231990,0.051187,97647.0,97646.0,0.30965971]
[1733825232187,0.051187,97647.0,97646.0,0.61823138]
[1733825233084,0.051187,97647.0,97646.0,0.30965971]
[1733825233386,0.051187,97647.0,97646.0,0.66940768]
[1733825233692,0.051187,97647.0,97646.0,0.36278797]
[1733825236904,0.12274459,97657.0,97646.0,0.36278797]
[1733825236905,0.09205281,97659.0,97646.0,0.35639996]
[1733825237189,0.09205281,97662.0,97658.0,0.3608]
[1733825237393,0.09205281,97664.0,97663.0,0.051178]
[1733825237692,0.05126356,97665.0,97663.0,0.051178]
[1733825237693,0.09211157,97665.0,97663.0,0.051178]
[1733825237896,0.12274459,97677.0,97675.0,0.051171]
[1733825238193,0.12274459,97677.0,97664.0,0.31104]
[1733825238194,0.08387,97679.0,97676.0,0.0543704]
[1733825238387,0.051167,97685.0,97683.0,0.051168]
[1733825238584,0.051167,97685.0,97684.0,0.0031994]
[1733825238786,0.051167,97685.0,97684.0,0.00331853]
[1733825239000,8.271e-05,97688.0,97687.0,0.051166]
[1733825239195,8.271e-05,97688.0,97687.0,0.09594831]
[1733825239403,0.051155,97707.0,97687.0,0.47473158]
[1733825239697,0.00060001,97707.0,97706.0,0.051196]
[1733825239888,0.00060001,97707.0,97706.0,0.0543954]
[1733825240090,0.051146,97724.0,97718.0,0.051149]
[1733825240286,0.051146,97724.0,97719.0,0.4151474]
[1733825240591,0.051146,97724.0,97723.0,4e-05]
[1733825240788,0.051146,97724.0,97723.0,0.0032394]
[1733825241496,0.052146,97724.0,97723.0,0.00323746]
[1733825242189,0.056146,97724.0,97723.0,0.00323746]
[1733825242396,0.07844183,97724.0,97723.0,4e-05]
[1733825243082,0.07844183,97724.0,97723.0,0.00323744]
[1733825243083,0.007,97724.0,97723.0,0.00323744]
[1733825244496,0.007,97724.0,97723.0,4e-05]
[1733825247994,0.01780922,97724.0,97723.0,4e-05]
[1733825248390,0.37860922,97724.0,97723.0,4e-05]
[1733825248784,0.41010922,97724.0,97723.0,4e-05]
[1733825251309,0.051159,97699.0,97697.0,0.3608]
[1733825251531,0.10047683,97707.0,97676.0,0.051171]
[1733825251699,0.06198,97698.0,97685.0,0.00319848]
[1733825252001,0.051167,97685.0,97675.0,0.3608]
[1733825252194,0.051167,97685.0,97684.0,0.0033179]
[1733825252390,0.051167,97685.0,97684.0,0.00011913]
[1733825252587,0.051167,97685.0,97684.0,0.00911913]
[1733825252898,0.051247,97685.0,97684.0,0.00911913]
[1733825254000,0.051247,97685.0,97684.0,0.01511913]
[1733825254201,0.052247,97685.0,97684.0,0.01511913]
[1733825254797,0.054247,97685.0,97684.0,0.00911913]
[1733825255004,0.058247,97685.0,97684.0,0.00011913]
[1733825255500,0.057247,97685.0,97684.0,0.00011913]
[1733825255705,0.056247,97685.0,97684.0,0.00011913]
[1733825256007,0.052247,97685.0,97684.0,0.00011913]
[1733825256199,0.055247,97685.0,97684.0,0.00011913]
[1733825256602,0.06605699,97685.0,97684.0,0.00011913]
[1733825258296,0.055247,97685.0,97684.0,0.00011913]
[1733825259198,0.052247,97685.0,97684.0,0.00011913]
[1733825260197,0.051247,97685.0,97684.0,0.00011913]
[1733825260794,0.053247,97685.0,97684.0,0.00011913]
[1733825261001,0.0739509,97685.0,97684.0,0.00011913]
[1733825261199,0.051177,97665.0,97663.0,0.3608]
[1733825261403,0.051177,97665.0,97664.0,0.00319916]
[1733825261717,0.051177,97665.0,97664.0,0.00319939]
[1733825262105,0.051177,97665.0,97664.0,0.00319961]
[1733825262401,0.051177,97665.0,97664.0,0.00328338]
[1733825262808,0.051177,97665.0,97664.0,8.377e-05]
[1733825263405,0.051177,97665.0,97664.0,0.00108377]
[1733825264208,0.051177,97665.0,97664.0,0.00208377]
[1733825265411,0.06183137,97665.0,97664.0,0.00208377]
[1733825266115,0.051177,97665.0,97664.0,0.00208377]
[1733825267722,0.051175,97670.0,97664.0,0.00528342]
[1733825267920,0.051177,97666.0,97665.0,0.00319965]
[1733825268114,0.051177,97666.0,97664.0,0.00208377]
[1733825268321,0.07149562,97666.0,97665.0,0.00319949]
[1733825270616,0.07149562,97666.0,97665.0,0.00419949]
[1733825271120,0.07149562,97666.0,97665.0,0.00519949]
[1733825272016,0.07149562,97666.0,97665.0,0.002]
[1733825273322,0.07149562,97666.0,97665.0,0.001]
[1733825273624,0.07149562,97666.0,97664.0,8.377e-05]
[1733825273821,0.0319,97665.0,97664.0,8.377e-05]
[1733825274033,0.03198,97665.0,97664.0,8.377e-05]
[1733825274726,0.03198,97665.0,97664.0,0.00108377]
[1733825275825,0.03207476,97665.0,97664.0,0.00208377]
[1733825276023,0.03207476,97665.0,97664.0,0.00108377]
[1733825276224,0.03207476,97665.0,97664.0,0.00208377]
[1733825279433,0.03207476,97665.0,97664.0,0.00528374]
[1733825279730,0.03207476,97665.0,97664.0,0.00208377]
[1733825280428,0.03207476,97665.0,97664.0,0.00528374]
[1733825285433,0.44405176,97665.0,97664.0,0.00528374]
[1733825288437,0.56679635,97665.0,97664.0,0.00528374]
[1733825289758,0.44405176,97665.0,97664.0,0.00528374]
[1733825290057,0.44405176,97665.0,97664.0,0.00208377]
[1733825290260,0.44405176,97665.0,97664.0,0.00528377]
[1733825294747,0.08325176,97665.0,97664.0,0.00528377]
[1733825294950,0.44405176,97665.0,97664.0,0.00528377]
[1733825295655,0.44405176,97665.0,97664.0,0.00712508]
[1733825298452,0.5974825,97665.0,97664.0,0.00712508]
[1733825299461,0.5974825,97665.0,97664.0,0.00712507]
[1733825299761,0.44405176,97665.0,97664.0,0.00712507]
[1733825300163,0.08325176,97665.0,97664.0,0.00712507]
[1733825300355,0.44405176,97665.0,97664.0,0.00712507]
[1733825300660,0.49382293,97665.0,97664.0,0.00712507]
[1733825302066,0.56567684,97665.0,97664.0,0.00712507]
[1733825302758,0.56567684,97665.0,97664.0,0.00712499]
[1733825304161,0.56567684,97665.0,97664.0,0.00852036]
[1733825305654,0.20487684,97665.0,97664.0,0.00852036]
[1733825305859,0.20487684,97665.0,97664.0,0.00852024]
[1733825307662,0.05135176,97665.0,97664.0,0.00852024]
[1733825312270,0.05135176,97665.0,97664.0,0.00852025]
[1733825312566,0.05135176,97665.0,97664.0,0.00991623]
[1733825313963,0.05135176,97665.0,97664.0,0.00671643]
[1733825314163,0.05135176,97665.0,97664.0,0.00991623]
[1733825315470,0.20487684,97665.0,97664.0,0.00991623]
[1733825316380,0.05135176,97665.0,97664.0,0.00991623]
[1733825318074,0.20487684,97665.0,97664.0,0.00991623]
[1733825320893,0.10112147,97665.0,97664.0,0.00991623]
[1733825321077,0.10112174,97665.0,97664.0,0.01131221]
[1733825321374,0.13152174,97665.0,97664.0,0.00811241]
[1733825321577,0.13152174,97665.0,97664.0,0.01131221]
[1733825322177,0.13152174,97665.0,97664.0,0.01131233]
[1733825322673,0.13152174,97665.0,97664.0,0.01131226]
[1733825323363,0.26591048,97665.0,97664.0,0.01131226]
[1733825323567,0.31568046,97665.0,97664.0,0.01131226]
[1733825323769,0.13152174,97665.0,97664.0,0.01131226]
[1733825323971,0.26591112,97665.0,97664.0,0.01131226]
[1733825324165,0.13152174,97665.0,97664.0,0.01131226]
[1733825325286,0.31568117,97665.0,97664.0,0.01131226]
[1733825325470,0.13152174,97665.0,97664.0,0.01131226]
[1733825325883,0.13152422,97665.0,97664.0,0.01131249]
[1733825326277,0.31568365,97665.0,97664.0,0.01131249]
[1733825326875,0.31568365,97665.0,97664.0,0.00811241]
[1733825327178,0.31568365,97665.0,97664.0,0.01131246]
[1733825327379,0.31565858,97665.0,97664.0,0.01131246]
[1733825327983,0.31565888,97665.0,97664.0,0.01131246]
[1733825328287,0.13152422,97665.0,97664.0,0.01131246]
[1733825328780,0.13152422,97665.0,97664.0,0.0113125]
[1733825328991,0.26588091,97665.0,97664.0,0.0113125]
[1733825329176,0.31565337,97665.0,97664.0,0.0113125]
[1733825329484,0.31565337,97665.0,97664.0,0.01270789]
[1733825330788,0.34804288,97665.0,97664.0,0.01270789]
[1733825331283,0.34804312,97665.0,97664.0,0.01270789]
[1733825331487,0.348043,97665.0,97664.0,0.01270789]
[1733825331781,0.348043,97665.0,97664.0,0.01270785]
[1733825331983,0.1639241,97665.0,97664.0,0.01270785]
[1733825332283,0.348043,97665.0,97664.0,0.01270785]
[1733825332678,0.348043,97665.0,97664.0,0.01270782]
[1733825333882,0.348043,97665.0,97664.0,0.0095078]
[1733825334085,0.1639241,97665.0,97664.0,0.01270783]
[1733825334591,0.348043,97665.0,97664.0,0.01270783]
[1733825334781,0.051185,97650.0,97649.0,0.24389701]
[1733825334987,0.1227392,97653.0,97643.0,0.30503895]
[1733825335286,0.1227392,97653.0,97642.0,0.3608]
[1733825335287,0.051186,97647.0,97642.0,0.66583895]
[1733825335479,0.051186,97647.0,97642.0,0.66695895]
[1733825336482,0.051186,97647.0,97643.0,0.30503895]
[1733825336680,0.051186,97647.0,97646.0,0.0095]
[1733825336877,0.051186,97647.0,97646.0,0.0145]
[1733825337275,0.052186,97647.0,97646.0,0.0145]
[1733825337882,0.052186,97647.0,97646.0,0.015896]
[1733825338187,0.052186,97647.0,97646.0,0.06069645]
[1733825338785,0.052186,97647.0,97646.0,0.015896]
[1733825339785,0.052186,97647.0,97646.0,0.0606966]
[1733825340095,0.052186,97647.0,97646.0,0.015896]
[1733825341291,0.052186,97647.0,97646.0,0.06069657]
[1733825341592,0.052186,97647.0,97646.0,0.015896]
[1733825341789,0.052186,97647.0,97646.0,0.06069674]
[1733825344487,0.052186,97647.0,97646.0,0.015896]
[1733825346790,0.052186,97647.0,97646.0,0.02776617]
[1733825347182,0.052186,97647.0,97646.0,0.09752617]
[1733825347398,0.052186,97647.0,97646.0,0.19473617]
[1733825347588,0.07300055,97647.0,97646.0,0.19473617]
[1733825347988,0.12277943,97647.0,97646.0,0.19473617]
[1733825348292,0.25711945,97647.0,97646.0,0.19473617]
[1733825348486,0.25711945,97647.0,97637.0,0.18371127]
[1733825348693,0.411991,97638.0,97626.0,0.54995137]
[1733825348892,0.35261,97627.0,97625.0,0.24491242]
[1733825349083,0.403807,97627.0,97626.0,0.24491242]
[1733825349285,0.403807,97627.0,97626.0,0.03379]
[1733825350095,0.404807,97627.0,97626.0,0.03379]
[1733825350493,0.403807,97627.0,97626.0,0.03379]
[1733825350792,0.403807,97627.0,97626.0,0.05098]
[1733825350793,0.404807,97627.0,97626.0,0.05098]
[1733825351188,0.405807,97627.0,97626.0,0.05898]
[1733825351889,0.404807,97627.0,97626.0,0.05398]
[1733825352290,0.41411854,97627.0,97626.0,0.04498]
[1733825352486,0.41511854,97627.0,97626.0,0.04898]
[1733825358290,0.06250854,97627.0,97626.0,0.04898]
[1733825360100,0.08317868,97627.0,97626.0,0.04898]
[1733825360608,0.08317868,97627.0,97626.0,0.05218086]
[1733825362204,0.08317868,97627.0,97626.0,0.05357735]
[1733825370630,0.08317868,97627.0,97626.0,0.05218086]
[1733825370799,0.08317868,97627.0,97626.0,0.05497384]
[1733825371004,0.44397868,97627.0,97626.0,0.05497384]
[1733825371212,0.56674514,97627.0,97626.0,0.05497384]
[1733825371507,0.44397868,97627.0,97626.0,0.05497384]
[1733825372705,0.08317868,97627.0,97626.0,0.05497384]
[1733825374307,0.17510737,97627.0,97626.0,0.05497384]
[1733825374910,0.17515718,97627.0,97626.0,0.05497384]
[1733825375205,0.08317868,97627.0,97626.0,0.05497384]
[1733825375606,0.08317868,97627.0,97626.0,0.05218086]
[1733825375806,0.09483021,97627.0,97626.0,0.05218086]
[1733825377311,0.21738581,97627.0,97626.0,0.05218086]
[1733825379712,0.21738581,97627.0,97626.0,0.04898]
[1733825380017,0.21738581,97627.0,97626.0,0.05218086]
[1733825383214,0.09483021,97627.0,97626.0,0.29717294]
[1733825384217,0.2176615,97627.0,97626.0,0.05218086]
[1733825386624,0.09483021,97627.0,97626.0,0.096993]
[1733825387421,0.2176615,97627.0,97626.0,0.096993]
[1733825388221,0.09483021,97627.0,97626.0,0.096993]
[1733825389125,0.09483021,97627.0,97626.0,0.05218086]
[1733825389126,0.2176615,97627.0,97626.0,0.05218086]
[1733825393231,0.2176615,97627.0,97626.0,0.04898]
[1733825393729,0.2176615,97627.0,97626.0,0.05218086]
[1733825393924,0.19699136,97627.0,97626.0,0.05218086]
[1733825394125,0.10477783,97627.0,97626.0,0.45500643]
[1733825394327,0.02082394,97639.0,97630.0,0.051195]
[1733825394628,0.0660814,97650.0,97638.0,0.7216]
[1733825394831,0.1172664,97650.0,97649.0,0.3608]
[1733825395130,0.051185,97650.0,97649.0,0.40880979]
[1733825395428,0.051185,97650.0,97649.0,0.65324619]
[1733825395938,0.051185,97650.0,97649.0,0.40880979]
[1733825396232,0.051185,97650.0,97649.0,0.42518979]
[1733825396233,0.06766592,97650.0,97649.0,0.42518979]
[1733825396424,0.06766592,97650.0,97649.0,0.38038086]
[1733825398527,0.06766592,97650.0,97649.0,0.38037991]
[1733825399025,0.08795116,97650.0,97649.0,0.38037991]
[1733825401434,0.08795116,97650.0,97649.0,0.37718]
[1733825401628,0.08795116,97650.0,97649.0,0.38037991]
[1733825403833,0.08795116,97650.0,97649.0,0.37718]
[1733825404033,0.08795116,97650.0,97649.0,0.38037996]
[1733825404737,0.08795116,97650.0,97630.0,0.051195]
[1733825404738,0.051194,97632.0,97631.0,0.24429839]
[1733825404932,0.0660814,97641.0,97622.0,0.24429839]
[1733825405139,0.0317,97631.0,97617.0,0.412002]
[1733825405325,0.0512,97621.0,97617.0,0.3608]
[1733825405830,0.051201,97620.0,97617.0,0.3608]
[1733825406029,8e-05,97618.0,97617.0,0.3608]
[1733825406439,8e-05,97618.0,97617.0,0.37499]
[1733825406630,0.051282,97618.0,97617.0,0.37499]
[1733825407536,0.051282,97618.0,97617.0,0.37999]
[1733825407733,0.0105958,97618.0,97617.0,0.37999]
[1733825408237,0.0105958,97618.0,97617.0,0.431192]
[1733825408936,0.0617978,97618.0,97617.0,0.431192]
[1733825409133,0.0617978,97618.0,97617.0,0.37999]
[1733825409360,0.0627978,97618.0,97617.0,0.37999]
[1733825410029,0.0115958,97618.0,97617.0,0.37999]
[1733825410235,0.0115958,97618.0,97617.0,0.070392]
[1733825410941,0.052282,97618.0,97617.0,0.070392]
[1733825413437,0.052282,97618.0,97617.0,0.01919]
[1733825414146,0.052282,97618.0,97617.0,0.37999]
[1733825415236,0.052282,97618.0,97617.0,0.38231889]
[1733825415545,0.052282,97618.0,97617.0,0.43352089]
[1733825416638,0.052282,97618.0,97617.0,0.4367218]
[1733825417838,0.052282,97618.0,97617.0,0.4623318]
[1733825418244,0.00108,97618.0,97617.0,0.4623318]
[1733825418446,0.15345808,97650.0,97636.0,0.05119]
[1733825418447,0.051192,97637.0,97636.0,0.05119]
[1733825418742,0.051192,97637.0,97636.0,0.41519091]
[1733825418943,0.051192,97637.0,97636.0,0.36400029]
[1733825419347,0.051192,97637.0,97636.0,0.36632918]
[1733825419947,0.051192,97637.0,97636.0,0.37032918]
[1733825420251,0.051192,97637.0,97636.0,0.37232918]
[1733825421243,0.051192,97637.0,97636.0,0.01152918]
[1733825421948,0.051192,97637.0,97636.0,0.00832889]
[1733825422139,0.051192,97637.0,97636.0,0.01152936]
[1733825424349,0.051192,97637.0,97636.0,0.01292572]
[1733825425148,0.051192,97637.0,97636.0,0.01292575]
[1733825426148,0.051192,97637.0,97636.0,0.02111575]
[1733825427547,0.01026985,97640.0,97636.0,0.02111575]
[1733825427750,0.02011959,97642.0,97638.0,0.051191]
[1733825427751,0.051191,97639.0,97638.0,0.051191]
[1733825427947,0.051191,97639.0,97638.0,0.05439144]
[1733825428342,0.051191,97639.0,97638.0,0.05811669]
[1733825429641,0.051191,97639.0,97638.0,0.00992569]
[1733825430549,0.051191,97639.0,97638.0,0.01192569]
[1733825431158,0.051191,97639.0,97638.0,0.01192564]
[1733825433354,0.051191,97639.0,97638.0,0.01278619]
[1733825434156,0.051191,97639.0,97638.0,0.0095858]
[1733825434355,0.051191,97639.0,97638.0,0.01278619]
[1733825437660,0.051191,97639.0,97638.0,0.06397719]
[1733825440360,0.051191,97639.0,97638.0,0.01278619]
[1733825445457,0.051191,97639.0,97638.0,0.2567741]
[1733825445660,0.051191,97639.0,97638.0,0.01278619]
[1733825446257,0.051191,97639.0,97638.0,0.05759187]
[1733825446451,0.051191,97639.0,97638.0,0.05759188]
[1733825446656,0.051191,97639.0,97638.0,0.0127862]
[1733825447664,0.17402664,97639.0,97638.0,0.0127862]
[1733825448562,0.051191,97639.0,97638.0,0.0127862]
[1733825451764,0.051191,97639.0,97638.0,0.0209762]
[1733825453676,0.051191,97639.0,97638.0,0.0177758]
[1733825453859,0.051191,97639.0,97638.0,0.02097632]
[1733825456370,0.051191,97639.0,97638.0,0.26606439]
[1733825456768,0.051191,97639.0,97638.0,0.02097632]
[1733825458077,0.46177098,97639.0,97630.0,0.10559726]
[1733825458262,0.051199,97623.0,97617.0,0.30580186]
[1733825458467,0.051203,97615.0,97614.0,0.30580186]
[1733825458665,0.051203,97615.0,97612.0,0.3608]
[1733825458666,0.18597155,97622.0,97612.0,0.66660186]
[1733825458867,0.051204,97613.0,97612.0,0.66660186]
[1733825459085,0.051205,97611.0,97610.0,0.30580186]
[1733825459268,0.051208,97606.0,97605.0,0.36703196]
[1733825459568,0.051208,97606.0,97602.0,0.3608]
[1733825459569,8e-05,97606.0,97602.0,0.3608]
[1733825459775,0.04302,97603.0,97602.0,0.3608]
[1733825459975,0.0431,97603.0,97602.0,0.3608]
[1733825461074,0.0431,97603.0,97602.0,0.3618]
[1733825461374,0.0536744,97603.0,97602.0,0.3618]
[1733825461576,0.0536744,97603.0,97602.0,0.36999]
[1733825461980,0.0536744,97603.0,97602.0,0.37099]
[1733825466571,0.0431,97603.0,97602.0,0.37099]
[1733825467087,0.0431,97603.0,97602.0,0.3966]
[1733825467374,0.0431,97603.0,97602.0,0.44781]
[1733825467568,8e-05,97603.0,97602.0,0.44781]
[1733825467982,8e-05,97603.0,97602.0,0.49262579]
[1733825468286,0.12287155,97639.0,97616.0,0.051202]
[1733825468477,0.051195,97633.0,97632.0,0.051193]
[1733825470279,0.051195,97633.0,97632.0,0.05439328]
[1733825470675,0.053195,97633.0,97632.0,0.05439328]
[1733825471079,0.051195,97633.0,97632.0,0.05439328]
[1733825472295,0.051196,97629.0,97623.0,3.4e-07]
[1733825472493,0.05121,97603.0,97601.0,0.3608]
[1733825473970,0.05221,97603.0,97602.0,0.0388]
[1733825475076,0.06266084,97603.0,97602.0,0.0388]
[1733825475381,0.06266084,97603.0,97602.0,0.0408]
[1733825478783,0.06266084,97603.0,97602.0,0.01519]
[1733825478987,0.001,97603.0,97602.0,0.01519]
[1733825479193,0.001,97603.0,97602.0,0.05821]
[1733825480177,0.001,97603.0,97602.0,0.0664]
[1733825484279,0.001,97603.0,97602.0,0.06960112]
[1733825484885,0.001,97603.0,97602.0,0.09521112]
[1733825485103,0.001,97603.0,97602.0,0.09201]
[1733825485275,0.001,97603.0,97602.0,0.09521112]
[1733825487884,0.001,97603.0,97602.0,0.45601112]
[1733825488086,0.001,97603.0,97602.0,0.45281]
[1733825488287,0.001,97603.0,97602.0,0.45601112]
[1733825490292,0.001,97603.0,97602.0,0.50082686]
[1733825491299,0.48321965,97627.0,97602.0,0.50082686]
[1733825491300,0.051201,97620.0,97619.0,0.051201]
[1733825491502,0.051201,97620.0,97619.0,0.41520212]
[1733825492594,0.052201,97620.0,97619.0,0.41520212]
[1733825493486,0.055201,97620.0,97619.0,0.41520212]
[1733825495692,0.055201,97620.0,97619.0,0.05440212]
[1733825495893,0.055201,97620.0,97619.0,0.41520212]
[1733825497501,0.055201,97620.0,97619.0,0.412001]
[1733825497693,0.055201,97620.0,97619.0,0.4152019]
[1733825498088,0.055201,97620.0,97619.0,0.4233919]
[1733825499396,0.055201,97620.0,97619.0,0.3721909]
[1733825500196,0.055201,97620.0,97619.0,0.0113909]
[1733825502492,0.055201,97620.0,97619.0,0.00819]
[1733825505693,0.004,97620.0,97619.0,0.00819]
[1733825505900,0.004,97620.0,97619.0,0.059391]
[1733825507698,0.004,97620.0,97619.0,0.420191]
[1733825509203,0.055201,97620.0,97619.0,0.420191]
[1733825509904,0.052201,97620.0,97619.0,0.420191]
[1733825510108,0.052201,97620.0,97619.0,0.425191]
[1733825510420,0.052201,97620.0,97619.0,0.428191]
[1733825511415,0.052201,97620.0,97619.0,0.37699]
[1733825512200,0.052201,97620.0,97619.0,0.01619]
[1733825512606,0.29779118,97620.0,97619.0,0.01619]
[1733825513306,0.051207,97608.0,97607.0,0.3608]
[1733825513610,0.051287,97608.0,97607.0,0.3608]
[1733825514000,0.051287,97608.0,97607.0,0.412007]
[1733825514500,0.051287,97608.0,97607.0,0.417007]
[1733825515104,0.051287,97608.0,97607.0,0.425197]
[1733825515304,8e-05,97608.0,97607.0,0.425197]
[1733825515503,0.00108,97608.0,97607.0,0.426197]
[1733825516402,0.00108,97608.0,97607.0,0.425197]
[1733825517011,0.00108,97608.0,97607.0,0.421197]
[1733825517211,0.00108,97608.0,97607.0,0.424197]
[1733825518004,0.052287,97608.0,97607.0,0.424197]
[1733825520499,0.00108,97608.0,97607.0,0.424197]
[1733825520701,0.00108,97608.0,97607.0,0.70944947]
[1733825521113,0.2762478,97610.0,97607.0,0.70944947]
[1733825521114,0.2262478,97610.0,97607.0,1.29816059]
[1733825521303,0.2262478,97610.0,97609.0,0.051206]
[1733825521505,0.2262478,97610.0,97609.0,0.051246]
[1733825522317,7.7e-07,97611.0,97609.0,1.00797616]
[1733825522507,7.7e-07,97611.0,97610.0,0.65672497]
[1733825522707,7.7e-07,97611.0,97610.0,0.65676497]
[1733825522909,7.7e-07,97611.0,97610.0,0.95676497]
[1733825523211,7.7e-07,97611.0,97610.0,1.38453311]
[1733825523413,7.7e-07,97611.0,97610.0,1.81218584]
[1733825523614,0.09207214,97613.0,97611.0,0.051205]
[1733825523910,0.09207214,97613.0,97612.0,1.01721719]
[1733825524311,0.09207214,97613.0,97612.0,1.31721719]